[Event "2026 European Womens Championship"]
[Site "Batumi, GE"]
[Date "2026.05.26"]
[Round "2"]
[White "Chanturia, Lika"]
[Black "Buyuk, Ecrin Efsa"]
[Result "0-1"]
[Board "79"]
[TimeControl "5400+30"]
[WhiteFideId "13618857"]
[BlackFideId "44505175"]
[WhiteElo "1649"]
[BlackElo "2076"]
[BlackTitle "WFM"]
[WhiteClock "0:01:10"]
[BlackClock "0:03:26"]
[Variant "Standard"]

1. e4 {[%clk 1:30:57]}  c6 {[%clk 1:30:55]} 2. Nc3 {[%clk 1:31:18]}  d5 {[%clk 1:31:23]} 3. Nf3 {[%clk 1:31:43]}  Bg4 {[%clk 1:31:48]}
4. h3 {[%clk 1:32:09]}  Bxf3 {[%clk 1:30:39]} 5. Qxf3 {[%clk 1:32:31]}  Nf6 {[%clk 1:31:01]} 6. d3 {[%clk 1:32:37]}  e6 {[%clk 1:27:28]}
7. g3 {[%clk 1:31:08]}  Nbd7 {[%clk 1:19:24]} 8. Bg2 {[%clk 1:28:43]}  d4 {[%clk 1:03:52]} 9. Nb1 {[%clk 1:18:46]}  Be7 {[%clk 1:04:08]}
10. Nd2 {[%clk 1:18:00]}  O-O {[%clk 0:59:27]} 11. O-O {[%clk 1:17:34]}  Rc8 {[%clk 0:53:23]} 12. a4 {[%clk 1:14:32]}  b5 {[%clk 0:49:26]}
13. Qe2 {[%clk 1:10:11]}  e5 {[%clk 0:46:50]} 14. f4 {[%clk 1:06:07]}  a6 {[%clk 0:43:58]} 15. f5 {[%clk 0:53:30]}  c5 {[%clk 0:39:33]}
16. b3 {[%clk 0:46:20]}  Ne8 {[%clk 0:35:27]} 17. Bb2 {[%clk 0:41:12]}  Qb6 {[%clk 0:27:33]} 18. a5 {[%clk 0:34:33]}  Qb8 {[%clk 0:17:56]}
19. Ba3 {[%clk 0:28:13]}  Nd6 {[%clk 0:16:21]} 20. h4 {[%clk 0:22:44]}  Qc7 {[%clk 0:12:57]} 21. Bh3 {[%clk 0:20:06]}  Rb8 {[%clk 0:10:15]}
22. Qf2 {[%clk 0:13:50]}  f6 {[%clk 0:03:19]} 23. Bg4 {[%clk 0:11:13]}  Qxa5 {[%clk 0:02:57]} 24. Bxc5 {[%clk 0:09:22]}  Qc7 {[%clk 0:03:26]}
25. Bxd6 {[%clk 0:08:37]}  Qxd6 {[%clk 0:03:54]} 26. Nf3 {[%clk 0:08:16]}  Rfc8 {[%clk 0:03:25]} 27. Bh5 {[%clk 0:06:17]}  Rb6 {[%clk 0:03:11]}
28. g4 {[%clk 0:06:07]}  Rbc6 {[%clk 0:03:16]} 29. Ra2 {[%clk 0:06:10]}  Qc7 {[%clk 0:03:17]} 30. Rc1 {[%clk 0:06:10]}  Nc5 {[%clk 0:03:08]}
31. Rca1 {[%clk 0:05:00]}  Nb7 {[%clk 0:01:43]} 32. Ne1 {[%clk 0:03:17]}  Bb4 {[%clk 0:01:46]} 33. g5 {[%clk 0:02:35]}  Bxe1 {[%clk 0:01:03]}
34. Qxe1 {[%clk 0:02:52]}  Rxc2 {[%clk 0:00:52]} 35. Rxa6 {[%clk 0:03:04]}  Nc5 {[%clk 0:00:39]} 36. Ra7 {[%clk 0:02:05]}  Qd8 {[%clk 0:00:39]}
37. Bf7+ {[%clk 0:01:41]}  Kh8 {[%clk 0:00:48]} 38. g6 {[%clk 0:00:39]}  Nxd3 {[%clk 0:00:37]} 39. Qd1 {[%clk 0:00:36]}  Nb4 {[%clk 0:00:36]}
40. Qh5 {[%clk 0:00:37]}  h6 {[%clk 0:00:52]} 41. Be6 {[%clk 0:01:04]}  Rc1+ {[%clk 0:00:42]} 42. Rxc1 {[%clk 0:01:18]}  Rxc1+ {[%clk 0:01:11]}
43. Kh2 {[%clk 0:29:05]}  Rc2+ {[%clk 0:30:15]} 44. Kg3 {[%clk 0:29:13]}  Rc7 {[%clk 0:30:02]} 45. Ra1 {[%clk 0:24:00]}  Nc2 {[%clk 0:25:16]}
46. Ra2 {[%clk 0:19:44]}  Nb4 {[%clk 0:24:59]} 47. Ra1 {[%clk 0:19:36]}  Rc3+ {[%clk 0:22:12]} 48. Kh2 {[%clk 0:16:08]}  Rc2+ {[%clk 0:13:09]}
49. Kg3 {[%clk 0:13:16]}  Nd3 {[%clk 0:02:44]} 50. Qd1 {[%clk 0:06:31]}  Rc3 {[%clk 0:03:05]} 51. Kh2 {[%clk 0:05:37]}  Nf4 {[%clk 0:02:09]}
52. Ra6 {[%clk 0:04:07]}  d3 {[%clk 0:01:02]} 53. Qa1 {[%clk 0:02:01]}  Rc2+ {[%clk 0:01:12]} 54. Kg3 {[%clk 0:01:38]}  Nxe6 {[%clk 0:01:20]}
55. Ra8 {[%clk 0:01:30]}  Rc8 {[%clk 0:01:38]} 56. Rxc8 {[%clk 0:01:13]}  Qxc8 {[%clk 0:01:37]} 57. fxe6 {[%clk 0:01:19]}  Qxe6 {[%clk 0:01:02]}
58. Qc3 {[%clk 0:00:37]}  Qd7 {[%clk 0:00:37]} 59. Qd2 {[%clk 0:00:34]}  h5 {[%clk 0:01:06]} 60. Qb4 {[%clk 0:00:49]}  Qg4+ {[%clk 0:00:43]}
61. Kf2 {[%clk 0:00:52]}  Qxg6 {[%clk 0:00:53]} 62. Qxb5 {[%clk 0:00:43]}  d2 {[%clk 0:00:44]} 63. Qd3 {[%clk 0:00:35]}  Qg4 {[%clk 0:00:37]}
64. Qxd2 {[%clk 0:00:46]}  Qxh4+ {[%clk 0:01:04]} 65. Kf3 {[%clk 0:00:34]}  Qh3+ {[%clk 0:01:27]} 66. Ke2 {[%clk 0:00:50]}  h4 {[%clk 0:01:11]}
67. Qd8+ {[%clk 0:01:07]}  Kh7 {[%clk 0:01:39]} 68. Qe8 {[%clk 0:00:57]}  Qg4+ {[%clk 0:02:02]} 69. Kd3 {[%clk 0:00:56]}  h3 {[%clk 0:02:19]}
70. Qa8 {[%clk 0:00:43]}  h2 {[%clk 0:02:40]} 71. Qa1 {[%clk 0:00:57]}  Qf3+ {[%clk 0:03:04]} 72. Kc4 {[%clk 0:01:10]}  h1=Q {[%clk 0:03:26]} 0-1

[Event "2026 European Womens Championship"]
[Site "Batumi, GE"]
[Date "2026.05.26"]
[Round "2"]
[White "Asatiani, Natali"]
[Black "Akat, Elifnaz"]
[Result "0-1"]
[Board "80"]
[TimeControl "5400+30"]
[WhiteFideId "13636715"]
[BlackFideId "34560556"]
[WhiteElo "1603"]
[BlackElo "2061"]
[BlackTitle "WFM"]
[WhiteClock "0:28:21"]
[BlackClock "1:08:11"]
[Variant "Standard"]

1. e4 {[%clk 1:30:53]}  c5 {[%clk 1:30:59]} 2. c3 {[%clk 1:31:18]}  Qa5 {[%clk 1:31:26]} 3. Nf3 {[%clk 1:26:38]}  Nc6 {[%clk 1:31:38]}
4. d4 {[%clk 1:23:36]}  cxd4 {[%clk 1:31:57]} 5. Nxd4 {[%clk 1:24:02]}  Nf6 {[%clk 1:31:54]} 6. f3 {[%clk 1:19:24]}  g6 {[%clk 1:31:15]}
7. Be3 {[%clk 1:15:11]}  Bg7 {[%clk 1:30:12]} 8. Be2 {[%clk 1:10:24]}  O-O {[%clk 1:30:04]} 9. g4 {[%clk 1:06:15]}  e6 {[%clk 1:22:13]}
10. Na3 {[%clk 0:50:04]}  d5 {[%clk 1:21:06]} 11. g5 {[%clk 0:28:34]}  Nh5 {[%clk 1:14:10]} 12. Nb3 {[%clk 0:24:52]}  Qc7 {[%clk 1:11:39]}
13. exd5 {[%clk 0:21:05]}  Rd8 {[%clk 1:06:45]} 14. Qc1 {[%clk 0:15:59]}  exd5 {[%clk 1:04:58]} 15. Nb5 {[%clk 0:13:36]}  Qe7 {[%clk 1:00:11]}
16. Qd2 {[%clk 0:09:10]}  Re8 {[%clk 0:58:03]} 17. Bc5 {[%clk 0:07:36]}  Qd8 {[%clk 0:53:16]} 18. O-O-O {[%clk 0:06:52]}  Be5 {[%clk 0:53:22]}
19. Kb1 {[%clk 0:04:39]}  Bf4 {[%clk 0:51:31]} 20. Qc2 {[%clk 0:04:07]}  b6 {[%clk 0:45:54]} 21. Bf2 {[%clk 0:03:16]}  Qxg5 {[%clk 0:47:13]}
22. h4 {[%clk 0:02:51]}  Qe7 {[%clk 0:45:31]} 23. Rhe1 {[%clk 0:02:44]}  Be6 {[%clk 0:45:09]} 24. N5d4 {[%clk 0:02:09]}  Ne5 {[%clk 0:44:56]}
25. Nxe6 {[%clk 0:02:01]}  fxe6 {[%clk 0:44:59]} 26. Nd4 {[%clk 0:02:15]}  a6 {[%clk 0:44:34]} 27. Bf1 {[%clk 0:02:18]}  b5 {[%clk 0:43:34]}
28. Bh3 {[%clk 0:01:45]}  Ng7 {[%clk 0:43:23]} 29. h5 {[%clk 0:02:07]}  Qf6 {[%clk 0:41:17]} 30. Be3 {[%clk 0:00:48]}  Bxe3 {[%clk 0:40:41]}
31. Rxe3 {[%clk 0:01:18]}  Nc4 {[%clk 0:41:06]} 32. Re2 {[%clk 0:01:31]}  e5 {[%clk 0:40:37]} 33. Nb3 {[%clk 0:00:56]}  Nxh5 {[%clk 0:40:46]}
34. Rh2 {[%clk 0:00:33]}  Ne3 {[%clk 0:41:10]} 35. Qd2 {[%clk 0:00:53]}  Nxd1 {[%clk 0:39:25]} 36. Qxd5+ {[%clk 0:01:21]}  Kh8 {[%clk 0:39:27]}
37. Qxd1 {[%clk 0:01:50]}  Rad8 {[%clk 0:39:46]} 38. Qh1 {[%clk 0:01:39]}  Nf4 {[%clk 0:38:31]} 39. Nc5 {[%clk 0:01:17]}  Qd6 {[%clk 0:38:01]}
40. Ne4 {[%clk 0:01:22]}  Qd3+ {[%clk 0:38:13]} 41. Kc1 {[%clk 0:29:00]}  Ne2+ {[%clk 1:08:09]} 42. Rxe2 {[%clk 0:29:28]}  Qxe2 {[%clk 1:08:31]}
43. Bg4 {[%clk 0:29:07]}  b4 {[%clk 1:07:59]} 44. cxb4 {[%clk 0:28:51]}  Re7 {[%clk 1:07:46]} 45. Qg1 {[%clk 0:28:32]}  Rc7+ {[%clk 1:07:51]}
46. Nc3 {[%clk 0:28:09]}  Rd2 {[%clk 1:07:33]} 47. Kb1 {[%clk 0:27:54]}  Rxb2+ {[%clk 1:08:00]} 48. Ka1 {[%clk 0:28:21]}  Rxc3 {[%clk 1:08:11]} 0-1

[Event "2026 European Womens Championship"]
[Site "Batumi, GE"]
[Date "2026.05.26"]
[Round "2"]
[White "Casadevall Mainau, Iraida"]
[Black "Aghaverdiyeva, Maryam"]
[Result "0-1"]
[Board "82"]
[TimeControl "5400+30"]
[WhiteFideId "54543142"]
[BlackFideId "13452509"]
[WhiteElo "1729"]
[BlackElo "2103"]
[BlackTitle "WFM"]
[WhiteClock "0:00:49"]
[BlackClock "1:30:30"]
[Variant "Standard"]

1. e4 {[%clk 1:30:30]}  c5 {[%clk 0:00:00]} 2. Nf3 {[%clk 1:29:31]}  e6 {[%clk 0:00:00]} 3. d4 {[%clk 1:28:52]}  cxd4 {[%clk 0:00:00]}
4. Nxd4 {[%clk 1:28:36]}  Nc6 {[%clk 0:00:00]} 5. Nb5 {[%clk 1:26:27]}  d6 {[%clk 0:00:00]} 6. c4 {[%clk 1:25:37]}  Nf6 {[%clk 0:00:00]}
7. N1c3 {[%clk 1:24:47]}  a6 {[%clk 0:00:00]} 8. Na3 {[%clk 1:24:19]}  Be7 {[%clk 0:00:00]} 9. Be2 {[%clk 1:21:10]}  O-O {[%clk 0:00:00]}
10. Be3 {[%clk 1:20:08]}  b6 {[%clk 0:00:00]} 11. O-O {[%clk 1:16:02]}  Bb7 {[%clk 0:00:00]} 12. f3 {[%clk 1:11:20]}  Re8 {[%clk 0:00:00]}
13. Qd2 {[%clk 1:04:15]}  Rc8 {[%clk 0:00:00]} 14. Rac1 {[%clk 1:00:05]}  Ne5 {[%clk 0:00:00]} 15. Rfd1 {[%clk 0:51:18]}  Qc7 {[%clk 0:00:00]}
16. Na4 {[%clk 0:43:31]}  Ned7 {[%clk 0:00:00]} 17. Bf4 {[%clk 0:34:08]}  Bc6 {[%clk 0:00:00]} 18. Nc3 {[%clk 0:27:20]}  Qa7 {[%clk 0:00:00]}
19. Kh1 {[%clk 0:25:26]}  Ne5 {[%clk 0:00:00]} 20. Nc2 {[%clk 0:21:14]}  Ba8 {[%clk 0:00:00]} 21. b3 {[%clk 0:19:31]}  Red8 {[%clk 0:00:00]}
22. Bf1 {[%clk 0:08:56]}  Qb8 {[%clk 0:00:00]} 23. Nd4 {[%clk 0:04:49]}  h6 {[%clk 0:00:00]} 24. Na4 {[%clk 0:00:49]}  Bf8 {[%clk 0:00:00]}
25. Be3 {[%clk 0:00:49]}  d5 {[%clk 0:00:00]} 26. cxd5 {[%clk 0:00:00]}  Rxc1 {[%clk 0:00:00]} 27. Rxc1 {[%clk 0:00:00]}  exd5 {[%clk 0:00:00]}
28. exd5 {[%clk 0:00:00]}  Nxd5 {[%clk 0:00:00]} 29. Bxa6 {[%clk 0:00:00]}  Ba3 {[%clk 0:00:00]} 30. Rc2 {[%clk 0:00:00]}  Bb4 {[%clk 0:00:00]}
31. Qf2 {[%clk 0:00:00]}  b5 {[%clk 0:00:00]} 32. Bxb5 {[%clk 0:00:00]}  Nxe3 {[%clk 0:00:00]} 33. Qxe3 {[%clk 0:00:00]}  Qd6 {[%clk 0:00:00]}
34. h3 {[%clk 0:00:00]}  Bb7 {[%clk 0:00:00]} 35. Nf5 {[%clk 0:00:00]}  Qd1+ {[%clk 0:00:00]} 36. Kh2 {[%clk 0:00:00]}  Nxf3+ {[%clk 0:00:00]}
37. gxf3 {[%clk 0:00:00]}  Qxc2+ {[%clk 0:00:00]} 0-1

[Event "2026 European Womens Championship"]
[Site "Batumi, GE"]
[Date "2026.05.27"]
[Round "3"]
[White "Fataliyeva, Ulviyya"]
[Black "Safarli, Josefine"]
[Result "1/2-1/2"]
[Board "1"]
[TimeControl "5400+30"]
[WhiteFideId "13403052"]
[BlackFideId "12900460"]
[WhiteElo "2450"]
[BlackElo "2253"]
[WhiteTitle "IM"]
[BlackTitle "WGM"]
[WhiteClock "0:19:16"]
[BlackClock "0:10:17"]
[Variant "Standard"]

1. e4 {[%clk 1:17:52]}  e5 {[%clk 1:30:52]} 2. Nf3 {[%clk 1:18:17]}  Nc6 {[%clk 1:31:19]} 3. Bc4 {[%clk 1:18:43]}  Nf6 {[%clk 1:31:10]}
4. d3 {[%clk 1:17:36]}  h6 {[%clk 1:31:28]} 5. c3 {[%clk 1:17:47]}  Bc5 {[%clk 1:31:37]} 6. b4 {[%clk 1:18:06]}  Be7 {[%clk 1:31:51]}
7. Qb3 {[%clk 1:18:26]}  O-O {[%clk 1:32:14]} 8. a4 {[%clk 1:18:52]}  d6 {[%clk 1:32:25]} 9. O-O {[%clk 1:19:07]}  Nb8 {[%clk 1:31:26]}
10. Qa2 {[%clk 1:19:21]}  c6 {[%clk 1:29:55]} 11. Re1 {[%clk 1:19:32]}  a5 {[%clk 1:26:37]} 12. b5 {[%clk 1:19:54]}  d5 {[%clk 1:22:00]}
13. Bb3 {[%clk 1:08:44]}  Nbd7 {[%clk 1:19:16]} 14. exd5 {[%clk 1:05:55]}  cxd5 {[%clk 1:16:33]} 15. Ba3 {[%clk 1:03:29]}  Bxa3 {[%clk 1:12:20]}
16. Nxa3 {[%clk 1:03:12]}  e4 {[%clk 1:05:48]} 17. dxe4 {[%clk 1:02:06]}  dxe4 {[%clk 1:06:13]} 18. Nd4 {[%clk 0:58:26]}  Nc5 {[%clk 1:02:30]}
19. Nc4 {[%clk 0:57:15]}  Be6 {[%clk 0:46:23]} 20. Nxe6 {[%clk 0:53:21]}  Nxe6 {[%clk 0:46:07]} 21. Qa3 {[%clk 0:39:13]}  Qc7 {[%clk 0:41:47]}
22. b6 {[%clk 0:35:17]}  Qc5 {[%clk 0:39:15]} 23. Qxc5 {[%clk 0:29:34]}  Nxc5 {[%clk 0:38:42]} 24. Bc2 {[%clk 0:25:44]}  Rfc8 {[%clk 0:35:26]}
25. Reb1 {[%clk 0:29:57]}  Ncd7 {[%clk 0:30:13]} 26. Bb3 {[%clk 0:25:33]}  Rc6 {[%clk 0:29:14]} 27. Ba2 {[%clk 0:24:11]}  Kf8 {[%clk 0:26:24]}
28. Rb5 {[%clk 0:22:40]}  Rac8 {[%clk 0:24:11]} 29. Nxa5 {[%clk 0:21:46]}  Rxc3 {[%clk 0:24:27]} 30. Nb3 {[%clk 0:17:54]}  Nc5 {[%clk 0:20:49]}
31. Nxc5 {[%clk 0:16:58]}  R8xc5 {[%clk 0:21:13]} 32. Rxc5 {[%clk 0:17:00]}  Rxc5 {[%clk 0:21:40]} 33. Bb3 {[%clk 0:17:01]}  Ra5 {[%clk 0:19:37]}
34. Rc1 {[%clk 0:11:31]}  Ne8 {[%clk 0:16:40]} 35. Rd1 {[%clk 0:08:12]}  Rc5 {[%clk 0:08:11]} 36. Kf1 {[%clk 0:05:48]}  Ke7 {[%clk 0:08:14]}
37. Rd5 {[%clk 0:02:28]}  Rc3 {[%clk 0:06:20]} 38. Re5+ {[%clk 0:02:19]}  Kf8 {[%clk 0:06:45]} 39. Rb5 {[%clk 0:01:07]}  Nd6 {[%clk 0:06:25]}
40. Rb4 {[%clk 0:01:25]}  Rc5 {[%clk 0:04:32]} 41. g4 {[%clk 0:24:15]}  h5 {[%clk 0:29:27]} 42. gxh5 {[%clk 0:16:38]}  Rxh5 {[%clk 0:29:18]}
43. Rd4 {[%clk 0:16:01]}  Ke7 {[%clk 0:28:52]} 44. Ke2 {[%clk 0:13:51]}  Rxh2 {[%clk 0:27:34]} 45. a5 {[%clk 0:12:21]}  e3 {[%clk 0:22:57]}
46. Bd5 {[%clk 0:10:11]}  Rxf2+ {[%clk 0:21:31]} 47. Kxe3 {[%clk 0:10:31]}  Rb2 {[%clk 0:21:55]} 48. Ra4 {[%clk 0:09:53]}  Rb5 {[%clk 0:19:11]}
49. Bxb7 {[%clk 0:08:56]}  Rxa5 {[%clk 0:18:14]} 50. Rxa5 {[%clk 0:09:17]}  Nc4+ {[%clk 0:18:41]} 51. Kd4 {[%clk 0:09:28]}  Nxa5 {[%clk 0:19:08]}
52. Bd5 {[%clk 0:09:53]}  Kd6 {[%clk 0:19:16]} 53. Bxf7 {[%clk 0:10:17]} 1/2-1/2

[Event "2026 European Womens Championship"]
[Site "Batumi, GE"]
[Date "2026.05.27"]
[Round "3"]
[White "Narva, Mai"]
[Black "Peglau, Charis"]
[Result "1-0"]
[Board "2"]
[TimeControl "5400+30"]
[WhiteFideId "4500512"]
[BlackFideId "16219996"]
[WhiteElo "2426"]
[BlackElo "2238"]
[WhiteTitle "IM"]
[BlackTitle "WFM"]
[WhiteClock "0:06:26"]
[BlackClock "0:01:50"]
[Variant "Standard"]

1. Nf3 {[%clk 1:30:55]}  d5 {[%clk 1:30:36]} 2. g3 {[%clk 1:31:08]}  Nf6 {[%clk 1:30:41]} 3. Bg2 {[%clk 1:31:18]}  c6 {[%clk 1:30:25]}
4. O-O {[%clk 1:31:01]}  Bf5 {[%clk 1:29:56]} 5. d4 {[%clk 1:28:01]}  e6 {[%clk 1:30:00]} 6. c4 {[%clk 1:23:44]}  Bd6 {[%clk 1:29:29]}
7. b3 {[%clk 1:20:09]}  Nbd7 {[%clk 1:29:27]} 8. Bb2 {[%clk 1:17:58]}  O-O {[%clk 1:29:29]} 9. Nc3 {[%clk 1:10:55]}  Re8 {[%clk 1:26:44]}
10. Nh4 {[%clk 1:01:03]}  Bg6 {[%clk 1:25:51]} 11. Nxg6 {[%clk 0:58:40]}  hxg6 {[%clk 1:26:20]} 12. Qd3 {[%clk 0:47:43]}  Qe7 {[%clk 1:22:40]}
13. Rad1 {[%clk 0:43:48]}  Rad8 {[%clk 1:21:03]} 14. f4 {[%clk 0:39:23]}  Bb4 {[%clk 1:15:33]} 15. Qc2 {[%clk 0:31:44]}  Ng4 {[%clk 1:04:41]}
16. Rf3 {[%clk 0:31:27]}  f5 {[%clk 1:04:07]} 17. e3 {[%clk 0:31:13]}  Bxc3 {[%clk 0:58:19]} 18. Bxc3 {[%clk 0:31:06]}  Ngf6 {[%clk 0:55:07]}
19. Rf2 {[%clk 0:29:35]}  Nb6 {[%clk 0:52:59]} 20. Ba5 {[%clk 0:28:46]}  Qa3 {[%clk 0:46:25]} 21. Bd2 {[%clk 0:27:04]}  dxc4 {[%clk 0:37:30]}
22. bxc4 {[%clk 0:27:27]}  c5 {[%clk 0:37:43]} 23. Bc1 {[%clk 0:23:25]}  Qb4 {[%clk 0:37:23]} 24. Bf1 {[%clk 0:23:25]}  Rc8 {[%clk 0:31:17]}
25. Qb3 {[%clk 0:22:02]}  Qa4 {[%clk 0:23:23]} 26. Rc2 {[%clk 0:17:09]}  Red8 {[%clk 0:21:19]} 27. Ba3 {[%clk 0:15:08]}  Ne4 {[%clk 0:14:51]}
28. Rcc1 {[%clk 0:13:47]}  Qxb3 {[%clk 0:12:09]} 29. axb3 {[%clk 0:14:10]}  Nd7 {[%clk 0:12:15]} 30. Bg2 {[%clk 0:13:05]}  b6 {[%clk 0:06:03]}
31. Bxe4 {[%clk 0:12:30]}  fxe4 {[%clk 0:06:32]} 32. g4 {[%clk 0:12:05]}  Kf7 {[%clk 0:02:39]} 33. g5 {[%clk 0:09:41]}  Ke8 {[%clk 0:02:48]}
34. Rd2 {[%clk 0:09:05]}  cxd4 {[%clk 0:01:38]} 35. Rxd4 {[%clk 0:03:16]}  Nc5 {[%clk 0:02:07]} 36. Bxc5 {[%clk 0:03:35]}  bxc5 {[%clk 0:02:29]}
37. Rxe4 {[%clk 0:03:59]}  Kf7 {[%clk 0:02:15]} 38. Ra1 {[%clk 0:04:04]}  Rc7 {[%clk 0:02:26]} 39. Ra6 {[%clk 0:03:37]}  Re7 {[%clk 0:01:11]}
40. Kf2 {[%clk 0:02:45]}  Rd2+ {[%clk 0:00:59]} 41. Kg3 {[%clk 0:30:05]}  Rd3 {[%clk 0:30:13]} 42. Re5 {[%clk 0:28:44]}  Rxb3 {[%clk 0:30:28]}
43. Kf3 {[%clk 0:28:58]}  Rc3 {[%clk 0:15:31]} 44. Rxc5 {[%clk 0:28:39]}  Rc1 {[%clk 0:09:29]} 45. Ra4 {[%clk 0:25:12]}  Rb1 {[%clk 0:08:39]}
46. Rca5 {[%clk 0:24:28]}  Rbb7 {[%clk 0:08:54]} 47. Ke4 {[%clk 0:23:03]}  Rec7 {[%clk 0:08:50]} 48. Ke5 {[%clk 0:22:53]}  Ke7 {[%clk 0:08:17]}
49. e4 {[%clk 0:20:25]}  Kd7 {[%clk 0:06:45]} 50. c5 {[%clk 0:18:22]}  Ke7 {[%clk 0:05:57]} 51. Rd4 {[%clk 0:17:41]}  Kf7 {[%clk 0:05:30]}
52. Rd6 {[%clk 0:17:30]}  Re7 {[%clk 0:05:24]} 53. c6 {[%clk 0:15:36]}  Rb6 {[%clk 0:02:18]} 54. Rc5 {[%clk 0:13:10]}  Rb8 {[%clk 0:01:35]}
55. h4 {[%clk 0:08:44]}  Rc8 {[%clk 0:01:13]} 56. Rb5 {[%clk 0:08:48]}  Rcc7 {[%clk 0:01:12]} 57. Rb8 {[%clk 0:08:41]}  Re8 {[%clk 0:01:13]}
58. Rxe8 {[%clk 0:07:14]}  Kxe8 {[%clk 0:01:42]} 59. Rxe6+ {[%clk 0:06:56]}  Kd8 {[%clk 0:01:50]} 60. Kd6 {[%clk 0:06:26]} 1-0

[Event "2026 European Womens Championship"]
[Site "Batumi, GE"]
[Date "2026.05.27"]
[Round "3"]
[White "Kiolbasa, Oliwia"]
[Black "Hryzlova, Sofiia"]
[Result "1-0"]
[Board "3"]
[TimeControl "5400+30"]
[WhiteFideId "1154613"]
[BlackFideId "14174669"]
[WhiteElo "2397"]
[BlackElo "2226"]
[WhiteTitle "IM"]
[BlackTitle "WIM"]
[WhiteClock "0:02:43"]
[BlackClock "0:00:35"]
[Variant "Standard"]

1. e4 {[%clk 1:26:46]}  c5 {[%clk 1:30:48]} 2. Nf3 {[%clk 1:27:09]}  d6 {[%clk 1:31:11]} 3. d4 {[%clk 1:27:34]}  cxd4 {[%clk 1:31:35]}
4. Nxd4 {[%clk 1:28:01]}  Nf6 {[%clk 1:31:56]} 5. Nc3 {[%clk 1:28:26]}  a6 {[%clk 1:32:19]} 6. f4 {[%clk 1:28:33]}  e5 {[%clk 1:28:45]}
7. Nb3 {[%clk 1:28:55]}  Qc7 {[%clk 1:28:46]} 8. Be2 {[%clk 1:27:44]}  Be7 {[%clk 1:27:09]} 9. O-O {[%clk 1:27:52]}  O-O {[%clk 1:26:17]}
10. g4 {[%clk 1:26:44]}  exf4 {[%clk 1:19:02]} 11. Bxf4 {[%clk 1:18:11]}  Be6 {[%clk 1:10:26]} 12. g5 {[%clk 1:08:51]}  Nfd7 {[%clk 1:08:11]}
13. Nd5 {[%clk 1:09:09]}  Bxd5 {[%clk 1:07:58]} 14. Qxd5 {[%clk 1:08:51]}  Nc6 {[%clk 1:06:57]} 15. c3 {[%clk 1:06:52]}  Nde5 {[%clk 1:02:28]}
16. Rf2 {[%clk 1:03:38]}  Rae8 {[%clk 0:58:24]} 17. Raf1 {[%clk 0:57:22]}  Bd8 {[%clk 0:52:02]} 18. Nd4 {[%clk 0:56:33]}  Ne7 {[%clk 0:51:40]}
19. Qb3 {[%clk 0:56:49]}  N7g6 {[%clk 0:50:49]} 20. Bc1 {[%clk 0:52:25]}  Qb6 {[%clk 0:44:15]} 21. Qd1 {[%clk 0:48:55]}  Qa7 {[%clk 0:38:30]}
22. Kh1 {[%clk 0:39:19]}  Bb6 {[%clk 0:30:32]} 23. h4 {[%clk 0:37:52]}  Nxh4 {[%clk 0:22:27]} 24. Rh2 {[%clk 0:36:39]}  Neg6 {[%clk 0:22:15]}
25. Nf5 {[%clk 0:33:00]}  Rxe4 {[%clk 0:21:50]} 26. Nxd6 {[%clk 0:31:45]}  Rxe2 {[%clk 0:15:40]} 27. Qxe2 {[%clk 0:28:25]}  Bc7 {[%clk 0:12:44]}
28. Nxf7 {[%clk 0:15:04]}  Qa8 {[%clk 0:11:59]} 29. Rhf2 {[%clk 0:06:12]}  b5+ {[%clk 0:09:43]} 30. Kg1 {[%clk 0:06:38]}  Bb6 {[%clk 0:04:33]}
31. Nh6+ {[%clk 0:06:10]}  Kh8 {[%clk 0:04:58]} 32. Be3 {[%clk 0:06:36]}  Nf4 {[%clk 0:05:09]} 33. Kh2 {[%clk 0:05:56]}  Bxe3 {[%clk 0:01:51]}
34. Qxe3 {[%clk 0:06:00]}  Qd5 {[%clk 0:00:57]} 35. Nf7+ {[%clk 0:04:15]}  Qxf7 {[%clk 0:00:52]} 36. Rxf4 {[%clk 0:04:00]}  Qc7 {[%clk 0:00:31]}
37. Qg3 {[%clk 0:02:57]}  Rxf4 {[%clk 0:00:35]} 38. Rxf4 {[%clk 0:02:43]} 1-0

[Event "2026 European Womens Championship"]
[Site "Batumi, GE"]
[Date "2026.05.27"]
[Round "3"]
[White "Vega Gutierrez, Sabrina"]
[Black "Hnatyshyn, Anastasiia"]
[Result "0-1"]
[Board "4"]
[TimeControl "5400+30"]
[WhiteFideId "2219026"]
[BlackFideId "14198339"]
[WhiteElo "2375"]
[BlackElo "2207"]
[WhiteTitle "IM"]
[BlackTitle "WFM"]
[WhiteClock "0:01:59"]
[BlackClock "0:11:18"]
[Variant "Standard"]

1. e4 {[%clk 1:30:56]}  c5 {[%clk 1:30:55]} 2. Nf3 {[%clk 1:31:20]}  Nc6 {[%clk 1:31:21]} 3. Bb5 {[%clk 1:31:40]}  e6 {[%clk 1:31:45]}
4. Bxc6 {[%clk 1:31:57]}  bxc6 {[%clk 1:32:10]} 5. b3 {[%clk 1:32:13]}  f6 {[%clk 1:32:16]} 6. d4 {[%clk 1:26:05]}  cxd4 {[%clk 1:27:38]}
7. Qxd4 {[%clk 1:26:22]}  Qb6 {[%clk 1:23:54]} 8. Qd3 {[%clk 1:22:10]}  Ne7 {[%clk 1:19:18]} 9. O-O {[%clk 1:18:13]}  Ng6 {[%clk 1:16:19]}
10. h4 {[%clk 0:57:13]}  Qb5 {[%clk 1:07:47]} 11. Qxb5 {[%clk 0:42:50]}  cxb5 {[%clk 1:08:09]} 12. h5 {[%clk 0:43:10]}  Ne7 {[%clk 1:06:17]}
13. Nd4 {[%clk 0:43:29]}  a6 {[%clk 1:03:33]} 14. Ba3 {[%clk 0:39:55]}  Bb7 {[%clk 0:57:43]} 15. Nd2 {[%clk 0:40:22]}  g6 {[%clk 0:49:55]}
16. hxg6 {[%clk 0:39:47]}  hxg6 {[%clk 0:47:40]} 17. c4 {[%clk 0:40:04]}  Nc6 {[%clk 0:45:14]} 18. Bb2 {[%clk 0:37:10]}  Ba3 {[%clk 0:38:09]}
19. Bxa3 {[%clk 0:27:51]}  Nxd4 {[%clk 0:38:31]} 20. f3 {[%clk 0:28:14]}  Nc2 {[%clk 0:38:38]} 21. Bb2 {[%clk 0:28:42]}  Nxa1 {[%clk 0:38:50]}
22. Bxf6 {[%clk 0:29:01]}  Nxb3 {[%clk 0:36:00]} 23. axb3 {[%clk 0:28:22]}  Rf8 {[%clk 0:31:48]} 24. e5 {[%clk 0:26:30]}  d5 {[%clk 0:29:44]}
25. cxb5 {[%clk 0:26:18]}  axb5 {[%clk 0:30:05]} 26. b4 {[%clk 0:26:36]}  Ra3 {[%clk 0:28:02]} 27. Kf2 {[%clk 0:24:47]}  d4 {[%clk 0:24:59]}
28. Rh1 {[%clk 0:21:00]}  Bd5 {[%clk 0:21:53]} 29. Rh6 {[%clk 0:19:01]}  Ra2 {[%clk 0:20:33]} 30. Ke1 {[%clk 0:18:42]}  Kd7 {[%clk 0:18:36]}
31. Rxg6 {[%clk 0:18:56]}  Rfa8 {[%clk 0:18:08]} 32. Rg7+ {[%clk 0:17:06]}  Kc6 {[%clk 0:18:32]} 33. Rg4 {[%clk 0:17:30]}  d3 {[%clk 0:17:19]}
34. Rd4 {[%clk 0:17:46]}  Bc4 {[%clk 0:15:00]} 35. Bg5 {[%clk 0:09:17]}  Rg8 {[%clk 0:14:44]} 36. Rg4 {[%clk 0:01:42]}  Rb2 {[%clk 0:12:23]}
37. Be7 {[%clk 0:01:28]}  Ra8 {[%clk 0:11:18]} 38. Bg5 {[%clk 0:01:31]}  Ra1+ {[%clk 0:11:03]} 39. Kf2 {[%clk 0:01:59]}  Rd1 {[%clk 0:11:18]} 0-1